fUSD/lending_fUSD_20240624
["ID","MTS","AMOUNT","RATE_DAILY","PERIOD"]
[330240215,1719204640818,-194.05202568,0.00020379,2]
[330240216,1719204640827,-266.80651301,0.00020399,2]
[330240217,1719204640836,-155.0,0.00020441,2]
[330240218,1719204640845,-343.407,0.000207,2]
[330240219,1719204640855,-238.44515292,0.00020789,2]
[330240220,1719204640864,-582358.27975,0.000208,2]
[330240221,1719204640873,-1493.37730779,0.00020861,2]
[330240222,1719204640882,-174.61417248,0.000209,2]
[330240223,1719204640891,-1954.57174589,0.0002094,2]
[330240224,1719204640900,-852.95,0.00020959,2]
[330240225,1719204640909,-852.95,0.00020959,2]
[330240226,1719204640919,-852.14,0.00020959,2]
[330240227,1719204640931,-836.64,0.00020959,2]
[330240228,1719204640941,-1250.0,0.00021,2]
[330240229,1719204640949,-305.29927065,0.00021,2]
[330240230,1719204640959,-202.552159,0.00021,2]
[330240231,1719204640968,-544.981878,0.00021005,2]
[330240232,1719204640977,-150.0,0.00021052,2]
[330240233,1719204640986,-5164.0,0.00021052,2]
[330240234,1719204640995,-150.0,0.00021052,2]
[330240235,1719204641006,-1659.0,0.00021052,2]
[330240236,1719204641014,-36945.382,0.00021052,2]
[330240237,1719204641023,-998.84,0.0002124,2]
[330240238,1719204641032,-238.4451529,0.00021303,2]
[330240239,1719204641041,-151.0,0.00021419,2]
[330240240,1719204641050,-174.61417244,0.00021424,2]
[330240241,1719204641059,-1016.57263371,0.00021479,2]
[330240242,1719204641068,-554.46,0.00021537,2]
[330240243,1719204641077,-304.46,0.00021582,2]
[330240244,1719204641088,-150.0,0.0002164,2]
[330240245,1719204641097,-178.82,0.00021644,2]
[330240246,1719204641106,-154.78,0.00021644,2]
[330240247,1719204641115,-150.0,0.00021646,2]
[330240248,1719204641124,-150.0,0.00021648,2]
[330240249,1719204641132,-150.0,0.00021658,2]
[330240250,1719204641141,-150.0,0.00021669,2]
[330240251,1719204641150,-150.0,0.00021669,2]
[330240252,1719204641160,-150.0,0.00021674,2]
[330240253,1719204641168,-295.9666427,0.00021674,2]
[330240254,1719204641177,-150.0,0.00021678,2]
[330240255,1719204641186,-150.0,0.00021685,2]
[330240256,1719204641195,-150.0,0.00021688,2]
[330240257,1719204641205,-150.0,0.00021689,2]
[330240258,1719204641214,-150.0,0.00021692,2]
[330240259,1719204641223,-219.06,0.00021699,2]
[330240260,1719204641231,-150.0,0.000217,2]
[330240261,1719204641240,-1588.84458,0.000217,2]
[330240262,1719204641249,-150.0,0.00021701,2]
[330240263,1719204641262,-150.0,0.00021702,2]
[330240264,1719204641271,-440.1564,0.00021706,2]
[330240265,1719204641279,-150.0,0.00021709,2]
[330240266,1719204641292,-150.0,0.0002171,2]
[330240267,1719204641302,-150.0,0.00021711,2]
[330240268,1719204641311,-150.0,0.00021723,2]
[330240269,1719204641320,-150.0,0.00021725,2]
[330240270,1719204641329,-150.0,0.00021729,2]
[330240271,1719204641338,-150.0,0.00021739,2]
[330240272,1719204641347,-150.0,0.00021739,2]
[330240273,1719204641356,-500.0,0.00021741,2]
[330240274,1719204641366,-150.0,0.00021741,2]
[330240275,1719204641375,-500.0,0.00021742,2]
[330240276,1719204641384,-200.0,0.00021742,2]
[330240277,1719204641398,-150.0,0.00021747,2]
[330240278,1719204641407,-150.0,0.00021747,2]
[330240279,1719204641418,-150.0,0.00021748,2]
[330240280,1719204641427,-150.0,0.00021748,2]
[330240281,1719204641437,-150.0,0.00021753,2]
[330240282,1719204641446,-150.0,0.00021758,2]
[330240283,1719204641456,-150.0,0.00021759,2]
[330240284,1719204641465,-150.0,0.0002176,2]
[330240285,1719204641476,-150.0,0.00021761,2]
[330240286,1719204641486,-150.0,0.00021763,2]
[330240287,1719204641495,-150.0,0.00021781,2]
[330240288,1719204641506,-150.0,0.00021785,2]
[330240289,1719204641515,-150.0,0.00021788,2]
[330240290,1719204641524,-150.0,0.00021789,2]
[330240291,1719204641534,-150.0,0.00021791,2]
[330240292,1719204641543,-150.0,0.00021799,2]
[330240293,1719204641552,-150.0,0.000218,2]
[330240294,1719204641561,-150.0,0.00021804,2]
[330240295,1719204641571,-150.0,0.00021804,2]
[330240296,1719204641581,-2595663.83434852,0.00021806,7]
[330240297,1719204641591,-150.0,0.00021806,2]
[330240298,1719204641600,-100000.0,0.00021806,2]
[330240299,1719204641611,-150.0,0.00021808,2]
[330240300,1719204641621,-150.0,0.00021811,2]
[330240301,1719204641631,-155.4467,0.00021817,2]
[330240302,1719204641641,-2392.4601,0.00021817,2]
[330240303,1719204641650,-41396.03,0.00021817,2]
[330240304,1719204641660,-10000.0,0.00021817,2]
[330240305,1719204641670,-500.0,0.00021817,2]
[330240306,1719204641680,-1866.65824226,0.00021817,2]
[330240307,1719204641689,-1954.57174589,0.00021817,2]
[330240308,1719204641699,-238.4451529,0.00021817,2]
[330240309,1719204641708,-150.0,0.00021819,2]
[330240310,1719204641717,-150.0,0.00021823,2]
[330240311,1719204641727,-300.0,0.00021824,2]
[330240312,1719204641736,-150.0,0.0002183,2]
[330240313,1719204641746,-150.0,0.00021831,2]
[330240314,1719204641757,-150.0,0.00021835,2]
[330240315,1719204641766,-532.71676313,0.00021839,2]
[330240316,1719204641775,-532.71676313,0.00021839,2]
[330240317,1719204641784,-150.0,0.0002184,2]
[330240318,1719204641794,-150.0,0.0002184,2]
[330240319,1719204641803,-150.0,0.00021842,2]
[330240320,1719204641812,-150.0,0.00021845,2]
[330240321,1719204641822,-150.0,0.00021846,2]
[330240322,1719204641832,-150.0,0.00021846,2]
[330240323,1719204641841,-150.0,0.0002185,2]
[330240324,1719204641851,-150.0,0.00021852,2]
[330240325,1719204641860,-150.0,0.0002186,2]
[330240326,1719204641870,-150.0,0.00021863,2]
[330240327,1719204641879,-1628.15219561,0.00021864,2]
[330240328,1719204641888,-1000.0,0.00021865,2]
[330240329,1719204641898,-150.0,0.00021866,2]
[330240330,1719204641907,-150.0,0.00021867,2]
[330240331,1719204641916,-150.0,0.00021869,2]
[330240332,1719204641925,-155.0,0.00021877,2]
[330240333,1719204641934,-150.0,0.00021882,2]
[330240334,1719204641943,-150.0,0.00021882,2]
[330240335,1719204641953,-305.13007106,0.00021887,2]
[330240336,1719204641963,-150.0,0.00021888,2]
[330240337,1719204641972,-150.0,0.00021895,2]
[330240338,1719204641981,-150.0,0.00021895,2]
[330240339,1719204641990,-365.2873899,0.00021896,2]
[330240340,1719204641999,-155.0,0.00021896,2]
[330240341,1719204642010,-529.68627556,0.00021896,2]
[330240342,1719204642019,-296.51463104,0.00021897,2]
[330240343,1719204642028,-150.0,0.00021899,2]
[330240344,1719204642038,-963.4,0.000219,2]
[330240345,1719204642047,-2000.0,0.000219,2]
[330240346,1719204642057,-314.0,0.000219,9]
[330240347,1719204642066,-262.0,0.000219,2]
[330240348,1719204642076,-263.0,0.000219,2]
[330240349,1719204642086,-190.0,0.000219,4]
[330240350,1719204642095,-150.0,0.000219,2]
[330240351,1719204642105,-1000.0,0.000219,2]
[330240352,1719204642115,-150.0,0.00021902,2]
[330240353,1719204642124,-368.47136735,0.00021906,2]
[330240354,1719204642133,-150.0,0.00021909,2]
[330240355,1719204642143,-258118.11763587,0.00021914,2]
[330240356,1719204642152,-1866.65824225,0.00021915,2]
[330240357,1719204642162,-152.89860747,0.00021916,2]
[330240358,1719204642172,-161.12041258,0.00021916,2]
[330240359,1719204642181,-39805.13256032,0.00021917,2]
[330240360,1719204642191,-39805.13256032,0.00021917,2]
[330240361,1719204642200,-39805.13256032,0.00021917,2]
[330240362,1719204642210,-39805.13256032,0.00021917,2]
[330240363,1719204642219,-505.59667103,0.00021917,2]
[330240364,1719204642229,-500.0,0.00021917,2]
[330240365,1719204642238,-500.0,0.00021917,2]
[330240366,1719204642248,-500.0,0.00021917,2]
[330240367,1719204642258,-502.98976292,0.00021917,2]
[330240368,1719204642268,-500.95159302,0.00021917,2]
[330240369,1719204642277,-500.0,0.00021917,2]
[330240370,1719204642287,-500.0,0.00021917,2]
[330240371,1719204642296,-500.0,0.00021917,2]
[330240372,1719204642306,-500.0,0.00021917,2]
[330240373,1719204642315,-500.0,0.00021917,2]
[330240374,1719204642325,-500.0,0.00021917,2]
[330240375,1719204642335,-500.0,0.00021917,2]
[330240376,1719204642344,-525.11060051,0.00021917,2]
[330240377,1719204642354,-500.0,0.00021917,2]
[330240378,1719204642363,-500.0,0.00021917,2]
[330240379,1719204642373,-500.0,0.00021917,2]
[330240380,1719204642383,-500.0,0.00021917,2]
[330240381,1719204642394,-501.4728797,0.00021917,2]
[330240382,1719204642406,-500.0,0.00021917,2]
[330240383,1719204642415,-500.0,0.00021917,2]
[330240384,1719204642425,-500.0,0.00021917,2]
[330240385,1719204642435,-500.0,0.00021917,2]
[330240386,1719204642444,-500.0,0.00021917,2]
[330240387,1719204642454,-500.0,0.00021917,2]
[330240388,1719204642463,-500.0,0.00021917,2]
[330240389,1719204642473,-501.77738895,0.00021917,2]
[330240390,1719204642484,-500.0,0.00021917,2]
[330240391,1719204642493,-500.0,0.00021917,2]
[330240393,1719204642503,-500.0,0.00021917,2]
[330240394,1719204642513,-500.0,0.00021917,2]
[330240396,1719204642522,-517.93793127,0.00021917,2]
[330240398,1719204642531,-500.0,0.00021917,2]
[330240400,1719204642540,-500.0,0.00021917,2]
[330240401,1719204642550,-500.0,0.00021917,2]
[330240403,1719204642559,-500.0,0.00021917,2]
[330240405,1719204642568,-500.0,0.00021917,2]
[330240409,1719204642578,-500.0,0.00021917,2]
[330240413,1719204642588,-500.0,0.00021917,2]
[330240416,1719204642597,-500.0,0.00021917,2]
[330240418,1719204642607,-500.0,0.00021917,2]
[330240420,1719204642616,-500.0,0.00021917,2]
[330240423,1719204642625,-500.0,0.00021917,2]
[330240425,1719204642635,-500.0,0.00021917,2]
[330240427,1719204642644,-500.0,0.00021917,2]
[330240429,1719204642654,-500.0,0.00021917,2]
[330240430,1719204642663,-500.0,0.00021917,2]
[330240431,1719204642673,-503.2717211,0.00021917,2]
[330240432,1719204642682,-179.43713083,0.00021917,2]
[330240434,1719204642691,-500.0,0.00021917,2]
[330240435,1719204642700,-500.0,0.00021917,2]
[330240436,1719204642709,-500.0,0.00021917,2]
[330240437,1719204642719,-485.8042239,0.00021917,2]
[330240439,1719204642728,-500.0,0.00021917,2]
[330240441,1719204642738,-500.0,0.00021917,2]
[330240442,1719204642748,-504.64906377,0.00021917,2]
[330240443,1719204642759,-500.0,0.00021917,2]
[330240444,1719204642768,-500.0,0.00021917,2]
[330240445,1719204642777,-500.0,0.00021917,2]
[330240446,1719204642787,-500.0,0.00021917,2]
[330240447,1719204642796,-500.0,0.00021917,2]
[330240448,1719204642806,-606.78837445,0.00021917,2]
[330240449,1719204642815,-500.0,0.00021917,2]
[330240450,1719204642825,-500.0,0.00021917,2]
[330240451,1719204642834,-500.0,0.00021917,2]
[330240452,1719204642844,-500.0,0.00021917,2]
[330240453,1719204642853,-500.0,0.00021917,2]
[330240454,1719204642863,-500.0,0.00021917,2]
[330240455,1719204642872,-500.0,0.00021917,2]
[330240456,1719204642882,-338.18742272,0.00021917,2]
[330240457,1719204642891,-500.0,0.00021917,2]
[330240458,1719204642901,-500.0,0.00021917,2]
[330240459,1719204642911,-500.0,0.00021917,2]
[330240460,1719204642921,-500.0,0.00021917,2]
[330240461,1719204642931,-500.0,0.00021917,2]
[330240462,1719204642940,-500.0,0.00021917,2]
[330240463,1719204642949,-371.38020729,0.00021917,2]
[330240464,1719204642959,-500.0,0.00021917,2]
[330240465,1719204642968,-500.0,0.00021917,2]
[330240466,1719204642978,-500.0,0.00021917,2]
[330240467,1719204642987,-212.99744278,0.00021917,2]
[330240468,1719204642997,-500.0,0.00021917,2]
[330240469,1719204643008,-500.0,0.00021917,2]
[330240470,1719204643017,-500.0,0.00021917,2]
[330240471,1719204643027,-500.0,0.00021917,2]
[330240472,1719204643036,-500.0,0.00021917,2]
[330240473,1719204643046,-500.0,0.00021917,2]
[330240474,1719204643055,-503.80589196,0.00021917,2]
[330240476,1719204643065,-500.0,0.00021917,2]
[330240477,1719204643075,-500.0,0.00021917,2]
[330240478,1719204643085,-500.0,0.00021917,2]
[330240479,1719204643094,-500.0,0.00021917,2]
[330240480,1719204643104,-500.0,0.00021917,2]
[330240481,1719204643113,-551.47131291,0.00021917,2]
[330240482,1719204643123,-500.0,0.00021917,2]
[330240483,1719204643133,-500.0,0.00021917,2]
[330240484,1719204643142,-500.0,0.00021917,2]
[330240485,1719204643152,-500.0,0.00021917,2]
[330240486,1719204643162,-500.0,0.00021917,2]
[330240487,1719204643171,-531.44412843,0.00021917,2]
[330240488,1719204643182,-500.0,0.00021917,2]
[330240489,1719204643191,-500.0,0.00021917,2]
[330240490,1719204643201,-500.0,0.00021917,2]
[330240491,1719204643211,-605.69999196,0.00021917,2]
[330240492,1719204643221,-500.0,0.00021917,2]
[330240493,1719204643231,-335.44471854,0.00021917,2]
[330240494,1719204643240,-500.0,0.00021917,2]
[330240495,1719204643250,-500.0,0.00021917,2]
[330240496,1719204643262,-500.0,0.00021917,2]
[330240497,1719204643272,-500.0,0.00021917,2]
[330240498,1719204643282,-500.0,0.00021917,2]
[330240502,1719204643292,-500.0,0.00021917,2]
[330240505,1719204643302,-611.51417555,0.00021917,2]
[330240507,1719204643311,-231.78594074,0.00021917,2]
[330240509,1719204643321,-500.0,0.00021917,2]
[330240510,1719204643330,-500.0,0.00021917,2]
[330240511,1719204643340,-500.0,0.00021917,2]
[330240512,1719204643349,-500.0,0.00021917,2]
[330240513,1719204643359,-500.0,0.00021917,2]
[330240514,1719204643369,-584.73622015,0.00021917,2]
[330240515,1719204643378,-500.0,0.00021917,2]
[330240516,1719204643389,-500.0,0.00021917,2]
[330240517,1719204643402,-500.0,0.00021917,2]
[330240518,1719204643412,-500.0,0.00021917,2]
[330240519,1719204643422,-500.0,0.00021917,2]
[330240520,1719204643432,-500.0,0.00021917,2]
[330240521,1719204643443,-500.0,0.00021917,2]
[330240522,1719204643452,-500.0,0.00021917,2]
[330240523,1719204643462,-500.0,0.00021917,2]
[330240524,1719204643472,-500.0,0.00021917,2]
[330240525,1719204643484,-500.0,0.00021917,2]
[330240526,1719204643494,-526.82259454,0.00021917,2]
[330240527,1719204643505,-500.11684981,0.00021917,2]
[330240528,1719204643514,-500.0,0.00021917,2]
[330240529,1719204643524,-500.0,0.00021917,2]
[330240530,1719204643533,-512.79802595,0.00021917,2]
[330240531,1719204643543,-500.0,0.00021917,2]
[330240532,1719204643553,-543.72830495,0.00021917,2]
[330240533,1719204643563,-500.0,0.00021917,2]
[330240534,1719204643573,-500.0,0.00021917,2]
[330240535,1719204643583,-500.0,0.00021917,2]
[330240536,1719204643592,-500.0,0.00021917,2]
[330240537,1719204643602,-500.0,0.00021917,2]
[330240538,1719204643612,-500.0,0.00021917,2]
[330240539,1719204643621,-500.0,0.00021917,2]
[330240540,1719204643631,-500.0,0.00021917,2]
[330240541,1719204643641,-500.0,0.00021917,2]
[330240542,1719204643651,-500.0,0.00021917,2]
[330240543,1719204643660,-500.0,0.00021917,2]
[330240544,1719204643670,-500.0,0.00021917,2]
[330240545,1719204643680,-500.0,0.00021917,2]
[330240546,1719204643690,-500.0,0.00021917,2]
[330240547,1719204643700,-500.0,0.00021917,2]
[330240548,1719204643709,-500.0,0.00021917,2]
[330240549,1719204643719,-500.0,0.00021917,2]
[330240550,1719204643729,-500.0,0.00021917,2]
[330240551,1719204643738,-500.0,0.00021917,2]
[330240552,1719204643748,-500.0,0.00021917,2]
[330240553,1719204643758,-500.0,0.00021917,2]
[330240554,1719204643768,-500.0,0.00021917,2]
[330240555,1719204643778,-500.0,0.00021917,2]
[330240556,1719204643787,-538.91515768,0.00021917,2]
[330240557,1719204643797,-502.2631255,0.00021917,2]
[330240558,1719204643807,-500.0,0.00021917,2]
[330240559,1719204643816,-500.0,0.00021917,2]
[330240560,1719204643826,-500.0,0.00021917,2]
[330240561,1719204643835,-500.0,0.00021917,2]
[330240562,1719204643846,-500.0,0.00021917,2]
[330240563,1719204643856,-500.0,0.00021917,2]
[330240564,1719204643865,-500.0,0.00021917,2]
[330240565,1719204643875,-500.0,0.00021917,2]
[330240566,1719204643886,-524.42050057,0.00021917,2]
[330240567,1719204643895,-500.0,0.00021917,2]
[330240568,1719204643905,-500.0,0.00021917,2]
[330240569,1719204643916,-500.0,0.00021917,2]
[330240570,1719204643925,-224.9076409,0.00021917,2]
[330240571,1719204643935,-500.0,0.00021917,2]
[330240572,1719204643945,-500.0,0.00021917,2]
[330240573,1719204643955,-326.83735232,0.00021917,2]
[330240574,1719204643965,-500.0,0.00021917,2]
[330240575,1719204643975,-500.0,0.00021917,2]
[330240576,1719204643985,-502.58336583,0.00021917,2]
[330240577,1719204643994,-500.0,0.00021917,2]
[330240578,1719204644005,-500.0,0.00021917,2]
[330240579,1719204644267,-370.74190035,0.00021917,2]
[330240580,1719204644277,-477.05359847,0.00021917,2]
[330240581,1719204644289,-500.0,0.00021917,2]
[330240582,1719204644299,-500.0,0.00021917,2]
[330240583,1719204644308,-500.0,0.00021917,2]
[330240584,1719204644317,-500.0,0.00021917,2]
[330240585,1719204644327,-500.0,0.00021917,2]
[330240586,1719204644336,-500.0,0.00021917,2]
[330240587,1719204644345,-500.0,0.00021917,2]
[330240588,1719204644355,-500.0,0.00021917,2]
[330240589,1719204644364,-186.77574158,0.00021917,2]
[330240590,1719204644373,-502.23260999,0.00021917,2]
[330240591,1719204644383,-421.40382289,0.00021917,2]
[330240592,1719204644392,-500.0,0.00021917,2]
[330240593,1719204644406,-500.0,0.00021917,2]
[330240594,1719204644415,-644.8259073,0.00021917,2]
[330240595,1719204644424,-503.54334909,0.00021917,2]
[330240596,1719204644434,-500.0,0.00021917,2]
[330240597,1719204644444,-502.59882769,0.00021917,2]
[330240598,1719204644453,-500.0,0.00021917,2]
[330240599,1719204644462,-503.43649629,0.00021917,2]
[330240600,1719204644471,-500.0,0.00021917,2]
[330240601,1719204644483,-497.72594113,0.00021917,2]
[330240602,1719204644493,-500.0,0.00021917,2]
[330240603,1719204644502,-500.0,0.00021917,2]
[330240604,1719204644513,-500.0,0.00021917,2]
[330240605,1719204644522,-508.32561473,0.00021917,2]
[330240606,1719204644531,-500.0,0.00021917,2]
[330240607,1719204644540,-500.0,0.00021917,2]
[330240608,1719204644549,-429.94495978,0.00021917,2]
[330240609,1719204644558,-500.0,0.00021917,2]
[330240610,1719204644568,-500.0,0.00021917,2]
[330240611,1719204644577,-541.89464433,0.00021917,2]
[330240612,1719204644586,-500.0,0.00021917,2]
[330240613,1719204644597,-500.0,0.00021917,2]
[330240614,1719204644606,-500.0,0.00021917,2]
[330240615,1719204644615,-500.0,0.00021917,2]
[330240616,1719204644624,-500.0,0.00021917,2]
[330240617,1719204644633,-500.0,0.00021917,2]
[330240618,1719204644642,-500.0,0.00021917,2]
[330240619,1719204644652,-500.0,0.00021917,2]
[330240620,1719204644661,-467.60832706,0.00021917,2]
[330240621,1719204644670,-500.0,0.00021917,2]
[330240622,1719204644679,-503.38410644,0.00021917,2]
[330240623,1719204644688,-497.47537039,0.00021917,2]
[330240624,1719204644697,-500.0,0.00021917,2]
[330240625,1719204644706,-536.75824104,0.00021917,2]
[330240626,1719204644716,-500.0,0.00021917,2]
[330240627,1719204644725,-500.0,0.00021917,2]
[330240628,1719204644735,-441.92,0.00021917,2]
[330240629,1719204644744,-456.0689824,0.00021917,2]
[330240630,1719204644755,-500.0,0.00021917,2]
[330240631,1719204644764,-500.0,0.00021917,2]
[330240632,1719204644774,-500.0,0.00021917,2]
[330240633,1719204644783,-500.0,0.00021917,2]
[330240634,1719204644792,-335.5,0.00021917,2]
[330240635,1719204644802,-500.0,0.00021917,2]
[330240636,1719204644812,-500.0,0.00021917,2]
[330240637,1719204644821,-500.0,0.00021917,2]
[330240638,1719204644830,-500.0,0.00021917,2]
[330240639,1719204644840,-500.0,0.00021917,2]
[330240640,1719204644849,-626.42,0.00021917,2]
[330240641,1719204644859,-500.0,0.00021917,2]
[330240642,1719204644868,-500.0,0.00021917,2]
[330240643,1719204644878,-500.0,0.00021917,2]
[330240644,1719204644887,-500.0,0.00021917,2]
[330240645,1719204644897,-500.0,0.00021917,2]
[330240646,1719204644907,-539.34345209,0.00021917,2]
[330240647,1719204644916,-500.0,0.00021917,2]
[330240648,1719204644926,-500.0,0.00021917,2]
[330240649,1719204644935,-500.0,0.00021917,2]
[330240650,1719204644945,-500.0,0.00021917,2]
[330240651,1719204644954,-500.0,0.00021917,2]
[330240652,1719204644963,-500.0,0.00021917,2]
[330240653,1719204644972,-500.0,0.00021917,2]
[330240654,1719204644981,-500.0,0.00021917,2]
[330240655,1719204644991,-500.0,0.00021917,2]
[330240656,1719204644999,-500.0,0.00021917,2]
[330240657,1719204645009,-500.0,0.00021917,2]
[330240658,1719204645018,-500.0,0.00021917,2]
[330240659,1719204645027,-364.81,0.00021917,2]
[330240660,1719204645037,-500.0,0.00021917,2]
[330240661,1719204645046,-500.0,0.00021917,2]
[330240662,1719204645055,-500.0,0.00021917,2]
[330240663,1719204645064,-612.7,0.00021917,2]
[330240664,1719204645073,-500.0,0.00021917,2]
[330240665,1719204645082,-500.0,0.00021917,2]
[330240666,1719204645091,-500.0,0.00021917,2]
[330240667,1719204645100,-500.0,0.00021917,2]
[330240668,1719204645110,-517.22865089,0.00021917,2]
[330240669,1719204645119,-500.0,0.00021917,2]
[330240670,1719204645128,-500.0,0.00021917,2]
[330240671,1719204645138,-500.0,0.00021917,2]
[330240672,1719204645147,-500.0,0.00021917,2]
[330240673,1719204645156,-502.04763248,0.00021917,2]
[330240674,1719204645165,-500.0,0.00021917,2]
[330240675,1719204645175,-460.34531117,0.00021917,2]
[330240676,1719204645184,-500.0,0.00021917,2]
[330240677,1719204645193,-500.0,0.00021917,2]
[330240678,1719204645202,-500.0,0.00021917,2]
[330240679,1719204645211,-500.0,0.00021917,2]
[330240680,1719204645221,-500.0,0.00021917,2]
[330240681,1719204645230,-500.0,0.00021917,2]
[330240682,1719204645239,-309.07,0.00021917,2]
[330240683,1719204645248,-622.16,0.00021917,2]
[330240684,1719204645257,-500.0,0.00021917,2]
[330240685,1719204645266,-500.0,0.00021917,2]
[330240686,1719204645275,-500.0,0.00021917,2]
[330240687,1719204645284,-268.5,0.00021917,2]
[330240688,1719204645294,-500.0,0.00021917,2]
[330240689,1719204645303,-500.0,0.00021917,2]
[330240690,1719204645312,-500.0,0.00021917,2]
[330240691,1719204645322,-500.0,0.00021917,2]
[330240692,1719204645331,-500.0,0.00021917,2]
[330240693,1719204645341,-500.0,0.00021917,2]
[330240694,1719204645350,-500.0,0.00021917,2]
[330240695,1719204645360,-500.0,0.00021917,2]
[330240696,1719204645369,-500.0,0.00021917,2]
[330240697,1719204645378,-500.0,0.00021917,2]
[330240698,1719204645387,-430.88,0.00021917,2]
[330240699,1719204645403,-500.0,0.00021917,2]
[330240700,1719204645413,-500.0,0.00021917,2]
[330240701,1719204645422,-500.0,0.00021917,2]
[330240702,1719204645432,-500.0,0.00021917,2]
[330240703,1719204645442,-500.0,0.00021917,2]
[330240704,1719204645451,-569.95568657,0.00021917,2]
[330240706,1719204645460,-500.0,0.00021917,2]
[330240707,1719204645470,-500.0,0.00021917,2]
[330240709,1719204645482,-500.0,0.00021917,2]
[330240711,1719204645491,-169.1003124,0.00021917,2]
[330240713,1719204645500,-552.24559698,0.00021917,2]
[330240714,1719204645509,-500.0,0.00021917,2]
[330240716,1719204645518,-500.0,0.00021917,2]
[330240718,1719204645529,-500.0,0.00021917,2]
[330240720,1719204645538,-500.0,0.00021917,2]
[330240722,1719204645547,-500.0,0.00021917,2]
[330240724,1719204645556,-316.74638806,0.00021917,2]
[330240725,1719204645565,-500.0,0.00021917,2]
[330240727,1719204645574,-500.0,0.00021917,2]
[330240729,1719204645583,-500.0,0.00021917,2]
[330240730,1719204645592,-500.0,0.00021917,2]
[330240731,1719204645602,-500.0,0.00021917,2]
[330240732,1719204645611,-500.0,0.00021917,2]
[330240733,1719204645620,-500.0,0.00021917,2]
[330240734,1719204645630,-500.0,0.00021917,2]
[330240735,1719204645639,-500.0,0.00021917,2]
[330240736,1719204645648,-302.4,0.00021917,2]
[330240737,1719204645657,-500.0,0.00021917,2]
[330240738,1719204645666,-509.11506121,0.00021917,2]
[330240739,1719204645675,-500.0,0.00021917,2]
[330240740,1719204645685,-500.0,0.00021917,2]
[330240741,1719204645694,-500.0,0.00021917,2]
[330240742,1719204645706,-500.0,0.00021917,2]
[330240743,1719204645715,-500.0,0.00021917,2]
[330240744,1719204645724,-500.0,0.00021917,2]
[330240745,1719204645733,-500.0,0.00021917,2]
[330240746,1719204645742,-500.0,0.00021917,2]
[330240747,1719204645751,-495.36,0.00021917,2]
[330240748,1719204645762,-520.67056457,0.00021917,2]
[330240749,1719204645771,-500.0,0.00021917,2]
[330240750,1719204645780,-500.0,0.00021917,2]
[330240751,1719204645789,-197.59,0.00021917,2]
[330240752,1719204645798,-500.71814139,0.00021917,2]
[330240753,1719204645808,-500.0,0.00021917,2]
[330240754,1719204645817,-500.0,0.00021917,2]
[330240755,1719204645826,-500.0,0.00021917,2]
[330240756,1719204645835,-500.0,0.00021917,2]
[330240757,1719204645844,-500.0,0.00021917,2]